bitfinex/quotes_ETHUSD_20250519
["timestamp","ask_amount","ask_price","bid_price","bid_amount"]
[1747647458084,28.02341056,2412.0,2411.9,0.00667634]
[1747647460203,23.84251058,2412.0,2411.9,0.00667634]
[1747647460919,15.84251058,2412.0,2411.9,0.00667634]
[1747647461325,23.84251058,2412.0,2411.9,0.00667634]
[1747647462218,15.83659038,2412.0,2411.9,0.00667634]
[1747647462429,23.83759038,2412.0,2411.9,0.00667634]
[1747647463029,7.83659038,2412.0,2411.9,0.00667634]
[1747647463239,4.14593698,2412.0,2411.9,0.00667634]
[1747647464630,0.83311941,2412.6,2411.9,0.00667634]
[1747647464821,4.1451674,2412.5,2411.9,8.00867634]
[1747647465131,4.96584503,2412.9,2411.9,12.15468869]
[1747647465331,4.96584503,2412.9,2411.9,10.5721213]
[1747647465332,5.48266457,2412.8,2411.9,10.5721213]
[1747647465524,4.14569774,2412.2,2411.9,10.5721213]
[1747647465721,4.14587094,2412.1,2411.9,10.5721213]
[1747647465925,4.92191904,2412.4,2411.9,0.00667634]
[1747647466121,4.14543,2412.3,2411.9,8.01167634]
[1747647466304,4.14560777,2412.2,2411.9,8.01167634]
[1747647466630,10.07,2412.9,2412.3,4.14531922]
[1747647466842,4.14446741,2412.9,2412.4,12.15015624]
[1747647467151,0.8314,2413.2,2412.5,0.7908]
[1747647467316,4.14388527,2413.2,2412.7,4.144593]
[1747647467513,10.8624,2413.5,2412.5,0.7908]
[1747647467828,4.14396023,2413.2,2412.9,0.7569]
[1747647468030,4.14404707,2413.1,2413.0,8.005]
[1747647468541,4.1445581,2412.9,2412.6,0.7934]
[1747647468832,4.14462447,2412.8,2412.4,8.004]
[1747647469038,4.1446602,2412.8,2412.4,8.004]
[1747647469225,4.1444645,2412.9,2412.4,12.14922104]
[1747647469398,4.14458357,2412.8,2412.4,8.004]
[1747647469952,4.14447744,2412.9,2412.4,8.004]
[1747647470140,4.14447744,2412.9,2412.8,0.00477011]
[1747647472645,4.14430169,2413.0,2412.8,0.00477011]
[1747647472827,4.14439056,2412.9,2412.8,0.00477011]
[1747647473611,4.1441345,2413.1,2412.8,0.00477011]
[1747647473843,4.1439966,2413.2,2412.8,0.00477011]
[1747647474156,4.14395328,2413.2,2412.8,0.77687011]
[1747647474304,4.14379361,2413.3,2412.8,0.77687011]
[1747647474758,4.14370364,2413.3,2412.8,0.77687011]
[1747647474984,4.14395803,2413.2,2412.8,0.77687011]
[1747647475463,4.14345544,2413.5,2412.9,1.04215721]
[1747647475614,4.14325759,2413.6,2413.0,4.95958618]
[1747647475959,4.14342886,2413.5,2413.0,0.8155]
[1747647476758,4.14358085,2413.4,2413.0,0.8155]
[1747647476931,4.14362406,2413.4,2413.0,0.8155]
[1747647477136,4.14374908,2413.3,2413.0,2.97517441]
[1747647477641,4.14421881,2413.0,2412.8,0.83087011]
[1747647477848,4.14404707,2413.1,2413.0,0.00516636]
[1747647480853,21.58496481,2413.1,2413.0,0.00516636]
[1747647481146,35.92765606,2413.1,2413.0,0.00516636]
[1747647481309,27.33265606,2413.1,2413.0,0.00516636]
[1747647481515,43.21063977,2413.1,2413.0,0.00516636]
[1747647481943,33.14063977,2413.1,2413.0,0.00516636]
[1747647482845,25.14063977,2413.1,2413.0,0.00516636]
[1747647483050,25.13963977,2413.1,2413.0,0.00516636]
[1747647484955,17.09163977,2413.1,2413.0,0.00516636]
[1747647485130,20.22704707,2413.1,2413.0,0.00516636]
[1747647485329,12.18904707,2413.1,2413.0,0.00516636]
[1747647485657,12.18278299,2413.1,2413.0,0.00516636]
[1747647485815,4.13778299,2413.1,2413.0,0.00516636]
[1747647486016,16.083,2413.4,2413.0,0.00516636]
[1747647486221,4.14345796,2413.5,2413.0,0.00516636]
[1747647486426,4.14354808,2413.4,2413.0,0.91083439]
[1747647486623,4.14354808,2413.4,2413.0,0.90967673]
[1747647487257,4.14364336,2413.4,2413.0,0.90967673]
[1747647487656,4.14381676,2413.3,2413.0,0.90967673]
[1747647487854,4.14398842,2413.2,2413.0,0.0040087]
[1747647488055,4.14404707,2413.1,2413.0,0.0040087]
[1747647488755,8.038,2413.6,2413.0,0.0040087]
[1747647488958,16.8115,2413.7,2413.0,0.0040087]
[1747647489259,4.1436504,2413.4,2413.0,0.0040087]
[1747647489558,4.1436504,2413.4,2413.0,0.49512839]
[1747647490069,4.14343485,2413.5,2413.0,4.63933371]
[1747647490257,4.14336156,2413.5,2413.0,4.63926982]
[1747647490448,4.14336156,2413.5,2413.1,0.95416879]
[1747647490845,4.14311681,2413.7,2413.2,4.14380717]
[1747647491023,4.14319601,2413.6,2413.1,5.09814835]
[1747647491223,4.14357582,2413.4,2413.1,0.95416879]
[1747647491432,4.14347745,2413.5,2413.2,0.12943361]
[1747647491632,4.14370364,2413.3,2413.2,0.12943361]
[1747647491835,4.1436012,2413.4,2413.2,0.12943361]
[1747647492052,4.14370364,2413.3,2413.2,0.12943361]
[1747647492451,4.14370364,2413.3,2413.0,8.53912839]
[1747647492736,4.14370364,2413.3,2413.1,0.12944556]
[1747647492934,0.1,2413.9,2413.2,0.8196]
[1747647493171,4.14326251,2413.6,2413.2,0.8196]
[1747647493368,0.1,2413.9,2413.3,0.12944556]
[1747647493369,4.14353194,2413.4,2413.3,0.12944556]
[1747647493868,4.14353194,2413.4,2413.2,0.8196]
[1747647494076,4.1428453,2413.8,2413.2,0.8196]
[1747647494373,4.24275515,2413.9,2413.4,4.14342533]
[1747647494672,0.1,2413.9,2413.5,4.50242267]
[1747647494833,0.1,2413.9,2413.6,0.807]
[1747647495035,0.1,2413.9,2413.6,4.95011369]
[1747647495264,0.1,2413.9,2413.7,4.50205729]
[1747647495967,0.1,2413.9,2413.8,0.12941864]
[1747647496154,0.1,2413.9,2413.8,0.35908274]
[1747647496358,0.1,2413.9,2413.8,4.70429228]
[1747647496677,0.1,2413.9,2413.8,5.49049228]
[1747647498348,0.1,2413.9,2413.8,1.34764698]
[1747647498545,0.1,2413.9,2413.8,2.70100372]
[1747647498760,0.1,2413.9,2413.8,6.84384902]
[1747647499768,0.1,2413.9,2413.8,7.39384902]
[1747647500375,0.1,2413.9,2413.8,15.42884902]
[1747647501180,0.09410116,2413.9,2413.8,15.42769136]
[1747647501386,0.09410116,2413.9,2413.8,23.42769136]
[1747647502089,0.66666667,2414.7,2413.8,23.42769136]
[1747647502090,0.66666667,2414.7,2414.0,0.55]
[1747647502292,0.66666667,2414.7,2414.6,4.1414727]
[1747647502613,0.66666667,2414.7,2414.6,12.1754727]
[1747647502801,0.66666667,2414.7,2414.6,20.2494727]
[1747647503090,0.66666667,2414.7,2414.6,28.2494727]
[1747647503791,0.66666667,2414.7,2414.6,16.108]
[1747647503954,0.66666667,2414.7,2414.6,16.33663773]
[1747647504480,0.66666667,2414.7,2414.6,0.22863773]
[1747647504677,0.66666667,2414.7,2414.6,1.00483773]
[1747647504852,0.66666667,2414.7,2414.6,4.9176727]
[1747647505289,0.66666667,2414.7,2414.6,0.7762]
[1747647505495,4.80800705,2414.7,2414.3,0.799]
[1747647505692,4.80800705,2414.7,2414.3,1.31929642]
[1747647506008,4.80800705,2414.7,2414.4,0.20145374]
[1747647506206,4.14164423,2414.5,2414.4,0.20145374]
[1747647506402,4.97014423,2414.5,2414.4,0.20145374]
[1747647506805,5.01166197,2414.5,2414.4,0.20145374]
[1747647507111,12.97014423,2414.5,2414.4,0.20145374]
[1747647507291,15.91382176,2414.5,2413.8,0.33653931]
[1747647507505,4.14267368,2413.9,2413.8,0.33653931]
[1747647507882,4.89767368,2413.9,2413.8,0.33653931]
[1747647508409,8.11,2414.3,2413.8,0.33653931]
[1747647508410,4.14240692,2414.1,2413.8,0.33653931]
[1747647508789,4.14253535,2414.0,2413.5,4.14326844]
[1747647508990,4.14253535,2414.0,2413.6,1.70987374]
[1747647509699,4.14253535,2414.0,2413.6,5.85305387]
[1747647509891,4.14225593,2414.2,2413.7,4.14298043]
[1747647510071,4.14217875,2414.2,2413.6,5.85296728]
[1747647510266,4.89706183,2414.3,2413.7,4.72816001]
[1747647510485,4.89706183,2414.3,2413.8,4.1427645]
[1747647510671,4.14215972,2414.2,2413.8,4.1427645]
[1747647511001,4.89704481,2414.3,2413.8,4.1427645]
[1747647511589,4.1420389,2414.3,2413.8,4.92836791]
[1747647511907,4.14217966,2414.2,2413.8,1.6333389]
[1747647512404,2.94367753,2414.5,2413.8,1.6333389]
[1747647512405,4.14240361,2414.1,2413.8,1.6333389]
[1747647512624,4.14225143,2414.2,2413.8,1.6333389]
[1747647512796,4.14225143,2414.2,2413.9,8.033]
[1747647513194,4.14206331,2414.3,2413.9,8.033]
[1747647513506,4.14200744,2414.3,2413.9,12.17563489]
[1747647513706,4.14193932,2414.4,2413.9,8.033]
[1747647513927,4.14183256,2414.4,2413.9,14.47077112]
[1747647514127,4.14215009,2414.3,2413.9,10.32817047]
[1747647514331,4.1421727,2414.2,2413.9,10.32817047]
[1747647514743,4.14250207,2414.0,2413.9,8.033]
[1747647515394,4.14271155,2413.9,2413.3,18.7004]
[1747647515639,4.14340168,2413.5,2413.4,0.12942172]
[1747647515934,4.14336026,2413.5,2413.4,0.12942172]
[1747647516136,4.14322936,2413.6,2413.1,0.8124]
[1747647516296,4.14383696,2413.3,2413.0,0.0040087]
[1747647516497,4.14336026,2413.5,2413.0,0.0040087]
[1747647516721,4.14395911,2413.2,2413.0,0.0040087]
[1747647516929,4.14379274,2413.3,2413.0,0.0040087]
[1747647517307,4.14346329,2413.5,2413.0,0.0040087]
[1747647517497,4.14346329,2413.5,2413.0,4.14815551]
[1747647517832,4.14339137,2413.5,2413.1,0.44846948]
[1747647518792,4.1432781,2413.6,2413.1,0.44846948]
[1747647518997,4.14379141,2413.3,2413.0,0.0040087]
[1747647519206,4.14402839,2413.2,2413.0,0.0040087]
[1747647519529,0.7788,2413.5,2413.0,0.0040087]
[1747647519705,4.14353194,2413.4,2413.0,0.0040087]
[1747647519904,4.14380274,2413.3,2413.0,0.0040087]
[1747647520109,8.8566,2413.8,2413.1,4.14404707]
[1747647520310,4.14304447,2413.7,2413.2,5.08840447]
[1747647520605,8.8566,2413.8,2413.2,0.94463614]
[1747647520814,8.8566,2413.8,2413.2,0.8152]
[1747647521009,4.14305033,2413.7,2413.2,4.95900646]
[1747647521206,4.14305033,2413.7,2413.3,0.12942829]
[1747647521433,12.24185421,2413.8,2413.2,0.8152]
[1747647521434,4.1432349,2413.6,2413.2,0.8152]
[1747647521633,4.1429843,2413.8,2413.3,0.74302226]
[1747647521807,4.14303457,2413.7,2413.3,0.74302226]
[1747647522327,4.14333703,2413.6,2413.3,0.74302226]
[1747647522502,4.14329948,2413.6,2413.3,0.2022576]
[1747647522916,4.14329948,2413.6,2413.2,0.8152]
[1747647523313,4.14291183,2413.8,2413.2,4.95903333]
[1747647523528,4.14304554,2413.7,2413.2,4.95899438]
[1747647523733,4.14267368,2413.9,2413.3,1.88797238]
[1747647523928,4.14336026,2413.5,2413.3,0.12942766]
[1747647524230,4.14374406,2413.3,2413.1,8.034]
[1747647524401,4.13922332,2413.2,2413.1,8.034]
[1747647524608,4.14382424,2413.3,2413.1,8.034]
[1747647524809,4.14404707,2413.1,2413.0,0.0040087]
[1747647525006,4.14392744,2413.2,2413.0,0.0040087]
[1747647525246,4.14404707,2413.1,2413.0,0.0040087]
[1747647525411,4.14362232,2413.4,2413.0,0.0040087]
[1747647525825,4.14346833,2413.5,2413.0,4.67148214]
[1747647526109,12.97465598,2413.7,2413.2,4.1437927]
[1747647526110,0.7975,2413.7,2413.2,4.1437927]
[1747647526311,4.14284661,2413.8,2413.3,4.91641228]
[1747647526519,4.14275653,2413.9,2413.4,4.1434993]
[1747647526753,4.14232581,2414.2,2413.6,4.14309138]
[1747647526915,4.14248479,2414.1,2413.5,4.18469759]
[1747647527244,4.142697,2413.9,2413.5,0.91010005]
[1747647528045,8.096,2414.2,2413.7,4.14293474]
[1747647528046,4.14218187,2414.2,2413.7,4.14293474]
[1747647528224,4.14218187,2414.2,2413.8,0.7694]
[1747647528820,4.93650864,2414.3,2413.8,4.91224075]
[1747647529021,4.1416515,2414.5,2413.9,4.63385603]
[1747647529235,4.14164623,2414.5,2414.0,4.14238036]
[1747647529412,4.14156654,2414.6,2414.1,4.1423273]
[1747647529617,4.80807001,2414.7,2414.1,4.1423273]
[1747647529835,4.14176544,2414.5,2413.9,4.63373292]
[1747647530245,4.14176544,2414.5,2414.0,4.14249612]
[1747647530550,4.14176544,2414.5,2414.0,4.37165898]
[1747647531049,4.14155086,2414.6,2414.1,0.12938485]
[1747647531228,4.14176615,2414.5,2414.0,0.22916286]
[1747647531428,4.14176615,2414.5,2413.9,4.63376067]
[1747647531624,4.14244878,2414.1,2414.0,0.20182991]
[1747647531935,4.14244878,2414.1,2414.0,0.33121775]
[1747647532135,4.14244878,2414.1,2414.0,0.20182991]
[1747647532445,4.13519106,2414.1,2414.0,0.20182991]
[1747647533242,4.13519106,2414.1,2413.3,8.8715]
[1747647533243,4.14306206,2413.7,2413.3,8.8715]
[1747647533425,0.8298,2414.1,2413.4,1.30152712]
[1747647533630,0.8298,2414.1,2413.5,4.14330462]
[1747647533930,4.14257275,2414.0,2413.5,4.27268572]
[1747647534132,4.14284666,2413.8,2413.6,0.20228834]
[1747647534331,0.8298,2414.1,2413.6,0.20228834]
[1747647534519,4.1428453,2413.8,2413.7,0.12942123]
[1747647534858,4.1428453,2413.8,2413.6,0.20228834]
[1747647535648,4.14301694,2413.7,2413.6,0.20228834]
[1747647535851,4.14301694,2413.7,2413.3,8.8715]
[1747647536023,4.14301694,2413.7,2413.6,0.1294246]
[1747647536760,0.89278,2414.0,2413.3,8.8715]
[1747647536963,4.14284766,2413.8,2413.3,11.00731847]
[1747647537325,4.14284766,2413.8,2413.4,0.22993898]
[1747647537326,4.14302008,2413.7,2413.4,0.22993898]
[1747647537636,4.14327301,2413.6,2413.5,0.20271283]
[1747647537954,4.14327301,2413.6,2413.5,0.3321387]
[1747647538357,4.14293649,2413.8,2413.5,0.3321387]
[1747647538675,12.2226238,2414.0,2413.5,0.3321387]
[1747647538827,4.14284661,2413.8,2413.6,0.20271283]
[1747647539026,4.14284661,2413.8,2413.6,0.3321387]
[1747647539554,4.14284661,2413.8,2413.7,0.12942587]
[1747647539876,5.7793879,2413.8,2413.7,0.12942587]
[1747647540187,4.9046467,2413.7,2413.6,0.20271283]
[1747647540375,16.57163472,2413.7,2413.6,0.20271283]
[1747647540680,12.91013194,2413.4,2413.3,0.25285849]
[1747647540958,34.42095571,2413.4,2413.3,0.25285849]
[1747647542363,12.94794707,2413.1,2413.0,0.0040087]
[1747647542563,16.57341735,2413.1,2413.0,0.0040087]
[1747647543068,4.14404707,2413.1,2413.0,0.0040087]
[1747647545233,12.14404707,2413.1,2413.0,0.0040087]
[1747647545446,19.04620359,2413.1,2413.0,0.0040087]
[1747647545641,29.11620359,2413.1,2413.0,0.0040087]
[1747647545872,12.14524954,2412.4,2412.3,0.25285849]
[1747647546075,32.76741982,2412.4,2412.3,0.25285849]
[1747647547841,33.30976184,2412.4,2412.3,0.25285849]
[1747647548170,37.40795454,2412.4,2412.3,0.25285849]
[1747647548478,13.49759323,2412.2,2412.1,0.1]
[1747647550463,12.94759323,2412.2,2412.1,0.1]
[1747647551240,13.49759323,2412.2,2412.1,0.1]
[1747647551469,17.59578593,2412.2,2412.1,0.1]
[1747647551671,27.66578593,2412.2,2412.1,0.1]
[1747647551881,4.96013698,2412.0,2411.9,0.00667634]
[1747647552080,4.96013698,2412.0,2410.3,1.02313066]
[1747647552081,4.96151254,2411.2,2410.3,1.02313066]
[1747647552313,32.81198282,2411.2,2410.3,1.02313066]
[1747647552472,35.17684657,2411.2,2410.3,1.02313066]
[1747647553906,31.55137629,2411.2,2410.3,1.02313066]
[1747647554274,32.07187629,2411.2,2410.3,0.00487217]
[1747647555517,32.06787629,2411.2,2410.3,0.00487217]
[1747647555669,32.06270092,2411.2,2410.3,0.00487217]
[1747647555867,31.51570092,2411.2,2410.3,0.00487217]
[1747647557098,32.06570092,2411.2,2410.3,0.00487217]
[1747647557287,4.14868901,2410.4,2410.3,0.00487217]
[1747647557617,29.17348901,2410.4,2410.3,0.00487217]
[1747647561082,21.04848901,2410.4,2410.3,0.00487217]
[1747647561289,12.14868901,2410.4,2410.3,0.00487217]
[1747647561479,4.14868901,2410.4,2410.3,0.00487217]
[1747647561675,4.14841251,2410.6,2410.4,0.8068]
[1747647561874,4.14785437,2410.9,2410.4,4.1486129]
[1747647562086,4.14810378,2410.8,2410.6,0.8068]
[1747647562315,8.111,2411.2,2410.6,0.8068]
[1747647562520,4.14790699,2410.9,2410.6,0.8068]
[1747647562741,4.14772688,2411.0,2410.6,0.8068]
[1747647562903,8.111,2411.2,2410.6,1.30234692]
[1747647563104,4.14868901,2410.4,2410.3,0.00487217]
[1747647563415,4.14373078,2410.4,2410.3,0.00487217]
[1747647563579,4.14844076,2410.6,2410.4,0.7669]
[1747647563775,4.14827643,2410.7,2410.4,0.7669]
[1747647563976,4.14836114,2410.6,2410.4,0.7669]
[1747647564424,4.1485169,2410.5,2410.4,0.7669]
[1747647564584,4.1485169,2410.5,2410.3,0.00487217]
[1747647564585,4.14868901,2410.4,2410.3,0.00487217]
[1747647567510,4.14861126,2410.5,2410.3,0.81637217]
[1747647567822,4.14868901,2410.4,2410.3,0.81637217]
[1747647568326,4.14860716,2410.5,2410.3,0.81637217]
[1747647568624,4.14868901,2410.4,2410.3,0.81637217]
[1747647570595,4.14868901,2410.4,2410.3,0.00487217]
[1747647570813,5.06093548,2410.4,2410.3,0.00487217]
[1747647570983,13.06093548,2410.4,2410.3,0.00487217]
[1747647571189,13.05371078,2410.4,2410.3,0.00487217]
[1747647571828,21.16571078,2410.4,2410.3,0.00487217]
[1747647573688,24.80200298,2410.4,2410.3,0.00487217]
[1747647575928,29.33171078,2410.4,2410.3,0.00487217]
[1747647578996,29.32323427,2410.4,2410.3,0.00487217]
[1747647579635,32.95952647,2410.4,2410.3,0.00487217]
[1747647580796,24.79452647,2410.4,2410.3,0.00487217]
[1747647581002,29.30923427,2410.4,2410.3,0.00487217]
[1747647582140,29.30523427,2410.4,2410.3,0.00487217]
[1747647582618,30.05793427,2410.4,2410.3,0.00487217]
[1747647583839,33.69422647,2410.4,2410.3,0.00487217]
[1747647586849,33.68736,2410.4,2410.3,0.00487217]
[1747647587148,34.23736,2410.4,2410.3,0.00487217]
[1747647587514,44.30736,2410.4,2410.3,0.00487217]
[1747647587713,44.52361394,2410.4,2410.3,0.00487217]
[1747647588878,28.26361394,2410.4,2410.3,0.00487217]
[1747647589066,44.54861394,2410.4,2410.3,0.00487217]
[1747647589577,16.07732174,2410.4,2410.3,0.00487217]
[1747647589741,40.1430678,2410.4,2410.3,0.00487217]
[1747647589941,40.6930678,2410.4,2410.3,0.00487217]
[1747647592542,31.2233678,2410.4,2410.3,0.00487217]
[1747647592748,38.47412133,2410.4,2410.3,0.00487217]
[1747647594387,39.02412133,2410.4,2410.3,0.00487217]
[1747647594547,39.7845514,2410.4,2410.3,0.00487217]
[1747647596057,39.2345514,2410.4,2410.3,0.00487217]
[1747647596358,38.4775514,2410.4,2410.3,0.00487217]
[1747647596593,30.3035514,2410.4,2410.3,0.00487217]
[1747647596781,38.4735514,2410.4,2410.3,0.00487217]
[1747647597091,42.5717441,2410.4,2410.3,0.00487217]
[1747647600294,30.3035514,2410.4,2410.3,0.00487217]
[1747647600700,4.14857248,2410.5,2410.3,0.79917217]
[1747647600996,4.14857248,2410.5,2410.4,0.129604]
[1747647601484,4.1481973,2410.7,2410.5,0.8038]
[1747647601687,10.07,2411.8,2410.7,0.8038]
[1747647601875,10.37347808,2411.9,2411.0,0.756]
[1747647602075,10.07,2411.9,2411.2,0.756]
[1747647602279,4.14683302,2411.5,2411.2,0.756]
[1747647602463,8.0,2411.8,2411.2,0.756]
[1747647602664,4.14714054,2411.3,2411.2,0.756]
[1747647603308,4.14681415,2411.5,2411.2,0.756]
[1747647604666,8.184,2412.0,2411.3,4.14711005]
[1747647604897,4.14655496,2411.7,2411.2,4.14729206]
[1747647605206,4.14679659,2411.5,2411.4,0.7798]
[1747647607403,4.14662464,2411.6,2411.2,0.7739]
[1747647607571,4.14741705,2411.2,2410.9,0.7739]
[1747647607772,4.14759514,2411.1,2410.9,0.7739]
[1747647608004,4.14765657,2411.0,2410.9,0.7739]
[1747647611534,4.14749814,2411.1,2410.9,0.7739]
[1747647611705,4.14749814,2411.1,2410.9,1.27024826]
[1747647611909,4.14738687,2411.2,2410.9,0.7739]
[1747647612647,4.14757071,2411.1,2410.9,0.7739]
[1747647613641,4.14731389,2411.2,2410.9,0.7739]
[1747647613642,4.14765657,2411.0,2410.9,0.7739]
[1747647614342,4.14755667,2411.1,2410.9,0.7739]
[1747647614838,4.14765657,2411.0,2410.9,0.7739]
[1747647615443,4.14806811,2410.8,2410.6,8.9507]
[1747647615947,10.41251101,2411.4,2410.6,8.9507]
[1747647616122,4.1475761,2411.1,2410.7,0.8225]
[1747647616645,4.14791527,2410.9,2410.7,0.8225]
[1747647617423,4.14768893,2411.0,2410.7,0.8225]
[1747647617649,4.14768893,2411.0,2410.8,0.89865]
[1747647617963,4.13977378,2411.0,2410.8,0.89865]
[1747647618656,4.14782861,2410.9,2410.8,0.89865]
[1747647619168,4.14774311,2411.0,2410.8,0.89865]
[1747647619356,0.005,2552.0,2410.9,0.7808]
[1747647619357,4.14724257,2411.3,2410.9,0.7808]
[1747647619658,8.0,2411.4,2410.9,0.7808]
[1747647619863,4.14722809,2411.3,2410.9,0.7808]
[1747647620464,4.14731344,2411.2,2410.9,0.7808]
[1747647621149,4.14756022,2411.1,2410.9,0.7808]
[1747647621343,4.14741579,2411.2,2410.9,1.36356168]
[1747647622058,8.29489883,2411.2,2410.9,1.36356168]
[1747647622261,4.14765067,2411.1,2410.9,0.7808]
[1747647622462,4.14817272,2410.7,2410.6,8.9806]
[1747647622667,4.14807772,2410.8,2410.6,8.9806]
[1747647622864,4.14792737,2410.9,2410.6,9.11017204]
[1747647623379,4.14792737,2410.9,2410.6,8.9806]
[1747647624045,4.14808895,2410.8,2410.6,8.9806]
[1747647624244,4.14791223,2410.9,2410.6,8.9806]
[1747647624544,4.14791223,2410.9,2410.6,10.29352826]
[1747647624739,4.14758873,2411.1,2410.6,14.44176497]
[1747647625059,4.14758873,2411.1,2410.7,0.12956858]
[1747647625259,8.0,2411.5,2410.8,4.94532433]
[1747647625462,4.14727944,2411.3,2410.8,5.07489291]
[1747647625667,4.14727944,2411.3,2410.9,0.92230402]
[1747647626067,4.14732134,2411.2,2410.9,0.92230402]
[1747647626242,4.14738267,2411.2,2410.8,0.7974]
[1747647626643,4.14738267,2411.2,2410.9,0.12956555]
[1747647626983,4.14738267,2411.2,2410.8,0.7974]
[1747647627146,4.14738267,2411.2,2410.8,2.62738111]
[1747647627473,4.1471164,2411.4,2410.9,0.8238]
[1747647627672,4.1471164,2411.4,2411.1,0.8238]
[1747647627975,0.8107,2412.4,2411.3,0.7779]
[1747647628184,0.8107,2412.4,2411.5,0.7779]
[1747647628185,4.14549291,2412.3,2411.5,0.7779]
[1747647628387,4.14549294,2412.3,2411.8,0.7779]
[1747647628684,0.8107,2412.8,2411.8,0.7779]
[1747647628849,4.14579739,2412.1,2411.9,0.36020123]
[1747647629268,4.14593698,2412.0,2411.9,0.36020123]
[1747647629472,4.14477932,2412.0,2411.9,0.36020123]
[1747647629672,4.14524954,2412.4,2411.9,0.36020123]
[1747647629983,4.14569444,2412.2,2412.0,0.12952491]
[1747647630148,4.14552115,2412.3,2412.0,0.12952491]
[1747647630342,4.14552115,2412.3,2411.9,0.23067632]
[1747647630550,4.14552326,2412.3,2411.9,0.23067632]
[1747647631042,4.14552326,2412.3,2411.9,0.7896]
[1747647631244,4.14559737,2412.2,2411.9,2.50882277]
[1747647631483,4.14559737,2412.2,2412.0,0.12950791]
[1747647631680,4.1455078,2412.3,2412.0,0.12950791]
[1747647632287,4.1455078,2412.3,2411.9,4.93570791]
[1747647632582,4.14560134,2412.2,2411.9,0.7896]
[1747647632780,4.1455078,2412.3,2411.9,0.7896]
[1747647633210,4.14560999,2412.2,2411.9,0.7896]
[1747647633600,4.14548976,2412.3,2411.9,4.9356974]
[1747647633910,4.14532427,2412.4,2411.9,6.65490275]
[1747647634076,4.14532427,2412.4,2412.0,0.20295002]
[1747647634877,8.0,2412.7,2412.0,0.20295002]
[1747647635706,4.14549729,2412.3,2412.0,0.20295002]
[1747647635877,4.14549729,2412.3,2411.9,6.65482959]
[1747647636079,4.1453498,2412.4,2411.9,6.65482959]
[1747647636416,4.14498606,2412.6,2412.1,4.91324384]
[1747647636587,12.25364404,2412.8,2412.4,0.7872]
[1747647636914,4.14484531,2412.7,2412.4,0.7872]
[1747647637211,8.1,2412.9,2412.4,0.7872]
[1747647637402,4.14503186,2412.6,2412.4,0.7872]
[1747647637709,4.14507772,2412.5,2412.4,0.7872]
[1747647637909,4.14524954,2412.4,2412.3,8.108]
[1747647638129,4.14524954,2412.4,2411.9,0.7568]
[1747647638308,4.14644488,2411.8,2411.7,0.8329]
[1747647638711,4.14615225,2411.9,2411.4,1.08575849]
[1747647638712,4.14679659,2411.5,2411.4,1.08575849]
[1747647639109,4.14679659,2411.5,2411.4,0.25285849]
[1747647640529,4.14666236,2411.6,2411.4,0.25285849]
[1747647640905,12.14609548,2412.0,2411.4,0.25285849]
[1747647641224,4.14679659,2411.5,2411.4,0.25285849]
[1747647641841,4.14679659,2411.5,2411.2,8.8609]
[1747647642037,10.07,2412.3,2411.2,8.8609]
[1747647642241,4.14595977,2412.0,2411.5,4.14671741]
[1747647642533,4.1461835,2411.9,2411.4,4.96679059]
[1747647642699,4.1461835,2411.9,2411.5,0.12952065]
[1747647643218,16.119,2412.4,2411.4,4.96679059]
[1747647643219,4.14632265,2411.8,2411.4,0.8199]
[1747647643418,4.14636239,2411.8,2411.4,2.12731596]
[1747647643725,4.14636239,2411.8,2411.4,6.27426806]
[1747647644120,4.14559115,2412.3,2411.5,4.27627592]
[1747647644121,4.14579648,2412.1,2411.5,4.27627592]
[1747647644318,4.1460101,2412.0,2411.5,4.14675379]
[1747647644720,4.14611751,2411.9,2411.5,4.34924335]
[1747647644899,4.14611751,2411.9,2411.5,5.41160628]
[1747647645433,4.14584168,2412.1,2411.6,0.7744]
[1747647645731,4.14640727,2411.8,2411.6,1.0041553]
[1747647645937,4.14627221,2411.9,2411.7,0.33200416]
[1747647646099,4.14628078,2411.8,2411.7,0.20248956]
[1747647647020,4.14628078,2411.8,2411.3,8.8975]
[1747647647198,4.14628078,2411.8,2411.3,13.0445033]
[1747647647199,4.14635726,2411.8,2411.3,13.0445033]
[1747647647402,4.14617859,2411.9,2411.4,4.1468824]
[1747647647716,4.14630672,2411.8,2411.6,0.7911]
[1747647647920,4.146043,2412.0,2411.6,0.7911]
[1747647648120,4.146043,2412.0,2411.6,4.93764176]
[1747647648330,4.14577915,2412.1,2411.6,4.93764612]
[1747647648494,4.1459849,2412.0,2411.7,1.07245746]
[1747647648931,4.1459849,2412.0,2411.6,4.93771305]
[1747647649110,4.14585963,2412.1,2411.6,4.93771305]
[1747647649312,0.7871,2412.8,2411.8,0.8098]
[1747647649513,4.14518447,2412.5,2412.0,4.14586968]
[1747647649711,4.14518447,2412.5,2412.1,4.2752754]
[1747647650009,4.14518447,2412.5,2412.1,1.86342706]
[1747647650334,4.2443929,2412.9,2412.5,4.14504814]
[1747647650335,0.1,2412.9,2412.5,4.14504814]
[1747647650549,0.1,2412.9,2412.2,13.33431261]
[1747647650747,0.1,2412.9,2412.2,8.8841]
[1747647651035,4.14514749,2412.5,2412.3,0.35925581]
[1747647651413,4.14524954,2412.4,2412.3,0.22977934]
[1747647652124,4.14458055,2412.8,2412.2,0.7711]
[1747647652339,4.14542138,2412.3,2412.2,0.7711]
[1747647652633,4.75047063,2412.9,2412.2,0.7711]
[1747647652931,4.14521221,2412.5,2412.2,2.07348294]
[1747647653146,4.14535002,2412.4,2412.2,0.7711]
[1747647653317,0.7723,2412.5,2411.8,0.829]
[1747647653634,4.14526229,2412.4,2411.9,4.27559298]
[1747647653834,4.14526229,2412.4,2412.0,0.12949456]
[1747647654007,4.14542372,2412.3,2412.0,0.12949456]
[1747647654209,4.14542372,2412.3,2412.0,1.05457504]
[1747647654544,4.14542372,2412.3,2412.1,0.12949456]
[1747647655417,4.14559323,2412.2,2412.1,0.12949456]
[1747647655910,4.14559323,2412.2,2411.9,0.12949456]
[1747647656442,4.14559323,2412.2,2412.0,0.20306552]
[1747647656753,4.1457651,2412.1,2412.0,0.20306552]
[1747647657436,4.1457651,2412.1,2412.0,0.33257345]
[1747647658216,4.1457651,2412.1,2412.0,0.20306552]
[1747647658955,4.14568995,2412.2,2411.7,12.26343147]
[1747647659152,4.14568995,2412.2,2412.0,0.12950931]
[1747647659747,4.14594439,2412.0,2411.8,0.23068728]
[1747647660049,4.14594439,2412.0,2411.9,0.43399475]
[1747647660351,4.14594439,2412.0,2411.9,0.56350576]
[1747647660576,13.09211967,2412.0,2411.9,0.43399475]
[1747647660865,12.9234527,2411.7,2411.6,0.25285849]
[1747647661036,16.5597449,2411.7,2411.6,0.25285849]
[1747647662041,4.14742553,2411.2,2410.8,0.7932]